[Event "Charlotte Fall GM-A 2023"]
[Site "Charlotte"]
[Date "2023.11.20"]
[Round "7.3"]
[White "Aarav Dengla"]
[Black "Corrales Jimenez, Fidel"]
[Result "1/2-1/2"]
[ECO "B10"]
[WhiteElo "2391"]
[BlackElo "2525"]
[Annotator "RC"]
[PlyCount "22"]
[EventDate "2023.11.17"]
[EventType "tourn"]
[EventCountry "USA"]
[SourceTitle "playchess.com"]
[Source "ChessBase"]
[SourceQuality "1"]
[TimeControl "5400+30"]

1. e4 {[%emt 0:00:01]} c6 {[%emt 0:06:29]} 2. Nf3 {[%emt 0:01:33]} d5 {[%emt 0:00:08]} 3. exd5 {[%emt 0:00:09]} cxd5 {[%emt 0:00:03]} 4. Ne5 {[%emt 0:00:22]} Nc6 {[%emt 0:00:28]} 5. Bb5 {[%emt 0:01:10]} Bd7 {[%emt 0:00:11]} 6. Nxd7 {[%emt 0:02:56]} Qxd7 {[%emt 0:00:10]} 7. d4 {[%emt 0:02:15]} a6 {[%emt 0:00:05]} 8. Be2 {[%emt 0:01:12]} e6 {[%emt 0:00:18]} 9. c3 {[%emt 0:00:22]} Bd6 {[%emt 0:00:10]} 10. Nd2 {[%emt 0:02:14]} Nf6 {[%emt 0:00:17]} 11. O-O {[%emt 0:03:31]} O-O {[%emt 0:01:50]} 1/2-1/2

[Event "Charlotte Fall GM-A 2023"]
[Site "Charlotte"]
[Date "2023.11.20"]
[Round "7.4"]
[White "Chen, Ryo"]
[Black "Mardov, Dimitar"]
[Result "0-1"]
[ECO "B90"]
[WhiteElo "2367"]
[BlackElo "2455"]
[Annotator "RC"]
[PlyCount "150"]
[EventDate "2023.11.17"]
[EventType "tourn"]
[EventCountry "USA"]
[SourceTitle "playchess.com"]
[Source "ChessBase"]
[SourceQuality "1"]
[TimeControl "5400+30"]

1. e4 {[%emt 0:11:21]} c5 {[%emt 0:00:08]} 2. Nf3 {[%emt 0:00:21]} d6 {[%emt 0:00:19]} 3. d4 {[%emt 0:00:23]} cxd4 {[%emt 0:00:04]} 4. Nxd4 {[%emt 0:00:06]} Nf6 {[%emt 0:00:05]} 5. Nc3 {[%emt 0:00:08]} a6 {[%emt 0:00:03]} 6. Be3 {[%emt 0:08:03]} e5 {[%emt 0:00:59]} 7. Nf3 {[%emt 0:00:31]} Be7 {[%emt 0:05:03]} 8. Bc4 {[%emt 0:00:24]} O-O {[%emt 0:06:29]} 9. O-O {[%emt 0:00:09]} Nc6 {[%emt 0:05:40]} 10. Bb3 {[%emt 0:31:02]} h6 {[%emt 1:16:40]} 11. Re1 {[%emt 0:12:38]} Na5 {[%emt 0:00:00]} 12. Nd5 {[%emt 0:07:24]} Nxb3 {[%emt 0:00:00]} 13. Bb6 {[%emt 0:02:03]} Qd7 {[%emt 0:00:00]} 14. Nxe7+ {[%emt 0:01:17]} Qxe7 {[%emt 0:00:00]} 15. axb3 {[%emt 0:00:14]} Be6 {[%emt 0:00:00]} 16. Ba5 {[%emt 0:11:36]} Qd7 {[%emt 0:00:00]} 17. Re3 {[%emt 0:04:38]} Qc6 {[%emt 0:00:00]} 18. Rc3 {[%emt 0:02:15]} Qb5 {[%emt 0:00:00]} 19. Re3 {[%emt 0:01:03]} b6 {[%emt 0:00:00]} 20. Bc3 {[%emt 0:01:22]} Qc6 {[%emt 0:00:00]} 21. Qe2 {[%emt 0:02:05]} a5 {[%emt 0:00:00]} 22. Ne1 {[%emt 0:01:26]} Rfc8 {[%emt 0:00:00]} 23. Nd3 {[%emt 0:00:52]} b5 {[%emt 0:00:00]} 24. Rxa5 {[%emt 0:00:06]} Rxa5 {[%emt 0:00:00]} 25. Bxa5 {[%emt 0:00:01]} Ng4 {[%emt 0:00:00]} 26. Rg3 {[%emt 0:00:26]} Qxc2 {[%emt 0:00:25]} 27. Qxc2 {[%emt 0:00:23]} Rxc2 {[%emt 0:00:03]} 28. h3 {[%emt 0:01:17]} Nf6 {[%emt 0:00:57]} 29. Re3 {[%emt 0:00:10]} Bxb3 {[%emt 0:01:05]} 30. Nxe5 {[%emt 0:00:46]} Rxb2 {[%emt 0:01:36]} 31. Nf3 {[%emt 0:00:40]} Bc2 {[%emt 0:00:56]} 32. e5 {[%emt 0:00:23]} dxe5 {[%emt 0:00:26]} 33. Rxe5 {[%emt 0:00:15]} b4 {[%emt 0:01:04]} 34. Rb5 {[%emt 0:00:55]} b3 {[%emt 0:00:29]} 35. Nd2 {[%emt 0:00:24]} Ne4 {[%emt 0:01:58]} 36. Nxe4 {[%emt 0:00:20]} Bxe4 {[%emt 0:00:08]} 37. Bc3 {[%emt 0:00:07]} Rb1+ {[%emt 0:00:04]} 38. Kh2 {[%emt 0:00:05]} Kh7 {[%emt 0:00:57]} 39. Rb4 {[%emt 0:00:25]} Bd5 {[%emt 0:00:52]} 40. Kg3 {[%emt 0:01:19]} Rc1 {[%emt 0:00:29]} 41. Bb2 {[%emt 0:00:34]} Rc2 {[%emt 0:00:20]} 42. Be5 {[%emt 0:00:24]} f6 {[%emt 0:01:28]} 43. Ba1 {[%emt 0:00:42]} Kg6 {[%emt 0:00:11]} 44. Rb5 {[%emt 0:00:36]} Rd2 {[%emt 0:00:12]} 45. f3 {[%emt 0:00:30]} Bc4 {[%emt 0:00:24]} 46. Rb4 {[%emt 0:00:07]} Bf1 {[%emt 0:00:52]} 47. Rxb3 {[%emt 0:00:09]} Rxg2+ {[%emt 0:00:05]} 48. Kf4 {[%emt 0:02:05]} Ra2 {[%emt 0:03:59]} 49. Bd4 {[%emt 0:00:00]} Bxh3 {[%emt 0:00:00]} 50. Bc5 {[%emt 0:00:14]} Ra5 {[%emt 0:00:00]} 51. Bf8 {[%emt 0:00:20]} Kf7 {[%emt 0:00:00]} 52. Bd6 {[%emt 0:00:22]} Ra7 {[%emt 0:00:00]} 53. Ra3 {[%emt 0:00:26]} Rd7 {[%emt 0:00:00]} 54. Bc5 {[%emt 0:00:09]} Rd5 {[%emt 0:00:07]} 55. Ra7+ {[%emt 0:00:29]} Bd7 {[%emt 0:00:06]} 56. Be3 {[%emt 0:01:03]} g5+ {[%emt 0:01:29]} 57. Ke4 {[%emt 0:00:25]} Re5+ {[%emt 0:00:27]} 58. Kd3 {[%emt 0:00:34]} Ke6 {[%emt 0:02:51]} 59. Ra6+ {[%emt 0:00:42]} Kf5 {[%emt 0:00:30]} 60. Rd6 {[%emt 0:00:24]} Be6 {[%emt 0:00:00]} 61. Bd4 {[%emt 0:00:27]} Ra5 {[%emt 0:00:00]} 62. Rd8 {[%emt 0:00:14]} Ra6 {[%emt 0:00:00]} 63. Ke3 {[%emt 0:00:36]} h5 {[%emt 0:00:17]} 64. Rh8 {[%emt 0:00:21]} h4 {[%emt 0:00:28]} 65. Rh6 {[%emt 0:00:14]} Bd5 {[%emt 0:00:18]} 66. Kf2 {[%emt 0:00:33]} Ra2+ {[%emt 0:00:09]} 67. Ke3 {[%emt 0:00:45]} Ra3+ {[%emt 0:00:09]} 68. Ke2 {[%emt 0:00:30]} Bxf3+ {[%emt 0:00:31]} 69. Kf2 {[%emt 0:00:11]} Kg4 {[%emt 0:00:25]} 70. Bxf6 {[%emt 0:00:35]} Ra2+ {[%emt 0:00:19]} 71. Kg1 {[%emt 0:00:49]} Be4 {[%emt 0:00:48]} 72. Rh8 {[%emt 0:01:37]} Rg2+ {[%emt 0:01:52]} 73. Kf1 {[%emt 0:00:00]} h3 {[%emt 0:00:41]} 74. Bxg5 {[%emt 0:00:25]} h2 {[%emt 0:00:50]} 75. Be3 {[%emt 0:00:32]} Ra2 {[%emt 0:00:13]} 0-1

[Event "Charlotte Fall GM-A 2023"]
[Site "Charlotte"]
[Date "2023.11.20"]
[Round "7.5"]
[White "Gauri, Shankar"]
[Black "Bellahcene, Bilel"]
[Result "0-1"]
[ECO "E04"]
[WhiteElo "2351"]
[BlackElo "2502"]
[Annotator "RC"]
[PlyCount "90"]
[EventDate "2023.11.17"]
[EventType "tourn"]
[EventCountry "USA"]
[SourceTitle "playchess.com"]
[Source "ChessBase"]
[SourceQuality "1"]
[TimeControl "5400+30"]

1. d4 {[%emt 0:00:01]} Nf6 {[%emt 0:18:41]} 2. Nf3 {[%emt 0:00:49]} e6 {[%emt 0:00:04]} 3. c4 {[%emt 0:00:10]} d5 {[%emt 0:00:22]} 4. g3 {[%emt 0:00:19]} dxc4 {[%emt 0:01:13]} 5. Bg2 {[%emt 0:00:52]} c6 {[%emt 0:00:04]} 6. Ne5 {[%emt 0:04:28]} Bb4+ {[%emt 0:00:06]} 7. Nc3 {[%emt 0:02:55]} Nd5 {[%emt 0:01:42]} 8. Bd2 {[%emt 0:03:49]} b5 {[%emt 0:02:32]} 9. a4 {[%emt 0:15:56]} f6 {[%emt 0:08:20]} 10. Nf3 {[%emt 0:02:56]} Bxc3 {[%emt 0:01:17]} 11. bxc3 {[%emt 0:01:06]} O-O {[%emt 0:00:31]} 12. e4 {[%emt 0:03:25]} Ne7 {[%emt 0:02:59]} 13. h4 {[%emt 0:01:42]} Nd7 {[%emt 0:06:15]} 14. h5 {[%emt 0:00:50]} h6 {[%emt 0:01:32]} 15. Bf4 {[%emt 0:04:04]} Bb7 {[%emt 0:09:03]} 16. O-O {[%emt 0:10:08]} Nb6 {[%emt 0:06:00]} 17. a5 {[%emt 0:00:49]} Na4 {[%emt 0:01:56]} 18. Rxa4 {[%emt 0:00:11]} bxa4 {[%emt 0:00:01]} 19. Qxa4 {[%emt 0:00:15]} Ba6 {[%emt 0:02:28]} 20. Bh3 {[%emt 0:03:09]} f5 {[%emt 0:01:48]} 21. Ne5 {[%emt 0:11:25]} Qe8 {[%emt 0:00:31]} 22. Qa3 {[%emt 0:01:06]} Bb5 {[%emt 0:04:35]} 23. Re1 {[%emt 0:15:11]} Rf6 {[%emt 0:04:36]} 24. exf5 {[%emt 0:01:22]} Nxf5 {[%emt 0:04:55]} 25. Ng6 {[%emt 0:00:40]} Qd7 {[%emt 0:01:17]} 26. Be5 {[%emt 0:09:39]} Rf7 {[%emt 0:00:52]} 27. g4 {[%emt 0:01:43]} Ne7 {[%emt 0:00:29]} 28. f4 {[%emt 0:02:49]} Nd5 {[%emt 0:06:48]} 29. Bg2 {[%emt 0:00:30]} Re8 {[%emt 0:01:52]} 30. Be4 {[%emt 0:01:27]} Qd8 {[%emt 0:00:22]} 31. Re2 {[%emt 0:01:02]} c5 {[%emt 0:00:40]} 32. dxc5 {[%emt 0:00:25]} Bc6 {[%emt 0:04:40]} 33. Bd6 {[%emt 0:01:15]} e5 {[%emt 0:02:15]} 34. Bxd5 {[%emt 0:00:28]} Bxd5 {[%emt 0:00:01]} 35. Bxe5 {[%emt 0:00:32]} Bf3 {[%emt 0:00:18]} 36. Rf2 {[%emt 0:00:31]} Bxg4 {[%emt 0:00:40]} 37. c6 {[%emt 0:00:30]} Bxh5 {[%emt 0:00:30]} 38. Rg2 {[%emt 0:00:16]} Qd1+ {[%emt 0:00:32]} 39. Kh2 {[%emt 0:00:01]} Bxg6 {[%emt 0:00:05]} 40. c7 {[%emt 0:00:32]} Be4 {[%emt 0:00:33]} 41. Qc5 {[%emt 0:00:40]} Qh5+ {[%emt 0:01:03]} 42. Kg1 {[%emt 0:00:04]} Bxg2 {[%emt 0:00:19]} 43. c8=Q {[%emt 0:01:58]} Qh1+ {[%emt 0:00:06]} 44. Kf2 {[%emt 0:00:30]} Qf1+ {[%emt 0:00:04]} 45. Kg3 {[%emt 0:00:00]} Rxc8 {[%emt 0:00:06]} 0-1

[Event "Charlotte Fall GM-A 2023"]
[Site "Charlotte"]
[Date "2023.11.21"]
[Round "8.1"]
[White "Sandoval Mercado, Carlos"]
[Black "Bellahcene, Bilel"]
[Result "1/2-1/2"]
[ECO "E49"]
[WhiteElo "2397"]
[BlackElo "2502"]
[Annotator "RC"]
[PlyCount "63"]
[EventDate "2023.11.17"]
[EventType "tourn"]
[EventCountry "USA"]
[SourceTitle "playchess.com"]
[Source "ChessBase"]
[SourceQuality "1"]
[TimeControl "5400+30"]

1. d4 {[%emt 0:00:03]} Nf6 {[%emt 0:00:00]} 2. c4 {[%emt 0:00:07]} e6 {[%emt 0:00:01]} 3. Nc3 {[%emt 0:00:20]} Bb4 {[%emt 0:00:02]} 4. e3 {[%emt 0:00:09]} O-O {[%emt 0:00:02]} 5. Bd3 {[%emt 0:00:11]} d5 {[%emt 0:00:01]} 6. a3 {[%emt 0:00:11]} Bxc3+ {[%emt 0:00:03]} 7. bxc3 {[%emt 0:00:05]} dxc4 {[%emt 0:00:01]} 8. Bxc4 {[%emt 0:00:08]} c5 {[%emt 0:00:01]} 9. Ne2 {[%emt 0:00:14]} Qc7 {[%emt 0:00:02]} 10. Ba2 {[%emt 0:00:40]} b6 {[%emt 0:01:01]} 11. O-O {[%emt 0:00:21]} Ba6 {[%emt 0:00:06]} 12. Re1 {[%emt 0:00:36]} Rd8 {[%emt 0:01:15]} 13. Ng3 {[%emt 0:02:10]} Nc6 {[%emt 0:00:11]} 14. Rb1 {[%emt 0:00:15]} Rac8 {[%emt 0:00:49]} 15. Rb2 {[%emt 0:00:11]} Na5 {[%emt 0:12:09]} 16. e4 {[%emt 0:03:48]} cxd4 {[%emt 0:00:14]} 17. cxd4 {[%emt 0:00:07]} Ne8 {[%emt 0:05:12]} 18. Bg5 {[%emt 0:06:17]} Rd7 {[%emt 0:00:41]} 19. d5 {[%emt 0:15:00]} Bc4 {[%emt 0:02:38]} 20. Rc2 {[%emt 0:07:01]} Qb7 {[%emt 0:00:40]} 21. Qc1 {[%emt 0:05:43]} Nd6 {[%emt 0:08:51]} 22. Bxc4 {[%emt 0:06:25]} Ndxc4 {[%emt 0:06:05]} 23. Bf6 {[%emt 0:05:57]} Kf8 {[%emt 0:07:42]} 24. Nh5 {[%emt 0:12:52]} gxf6 {[%emt 0:00:30]} 25. Qh6+ {[%emt 0:00:06]} Ke7 {[%emt 0:00:12]} 26. Qxf6+ {[%emt 0:00:58]} Kd6 {[%emt 0:00:10]} 27. dxe6 {[%emt 0:15:14]} fxe6 {[%emt 0:00:03]} 28. Rd1+ {[%emt 0:04:06]} Kc7 {[%emt 0:00:28]} 29. Qe5+ {[%emt 0:00:42]} Kd8 {[%emt 0:00:12]} 30. Qf6+ {[%emt 0:01:12]} Kc7 {[%emt 0:00:04]} 31. Qe5+ {[%emt 0:06:13]} Kd8 {[%emt 0:00:08]} 32. Qf6+ {[%emt 0:00:04]} 1/2-1/2

[Event "Charlotte Fall GM-A 2023"]
[Site "Charlotte"]
[Date "2023.11.21"]
[Round "8.2"]
[White "Mardov, Dimitar"]
[Black "Gauri, Shankar"]
[Result "1/2-1/2"]
[ECO "B11"]
[WhiteElo "2455"]
[BlackElo "2351"]
[Annotator "RC"]
[PlyCount "56"]
[EventDate "2023.11.17"]
[EventType "tourn"]
[EventCountry "USA"]
[SourceTitle "playchess.com"]
[Source "ChessBase"]
[SourceQuality "1"]
[TimeControl "5400+30"]

1. e4 {[%emt 0:00:02]} c6 {[%emt 0:05:15]} 2. Nf3 {[%emt 0:00:54]} d5 {[%emt 0:00:22]} 3. Nc3 {[%emt 0:00:04]} Bg4 {[%emt 0:00:23]} 4. h3 {[%emt 0:01:17]} Bxf3 {[%emt 0:06:12]} 5. Qxf3 {[%emt 0:00:13]} e6 {[%emt 0:00:03]} 6. d4 {[%emt 1:31:00]} dxe4 {[%emt 0:01:50]} 7. Qxe4 {[%emt 0:00:00]} Nf6 {[%emt 0:00:39]} 8. Qd3 {[%emt 0:00:00]} Na6 {[%emt 0:08:53]} 9. a3 {[%emt 0:00:00]} Be7 {[%emt 0:07:23]} 10. Bd2 {[%emt 0:00:00]} O-O {[%emt 0:00:26]} 11. g4 {[%emt 0:00:00]} c5 {[%emt 0:02:02]} 12. dxc5 {[%emt 0:00:00]} Qxd3 {[%emt 0:01:20]} 13. Bxd3 {[%emt 0:00:00]} Nxc5 {[%emt 0:01:48]} 14. Be2 {[%emt 0:00:00]} Nfe4 {[%emt 0:02:13]} 15. Nxe4 {[%emt 0:00:00]} Nxe4 {[%emt 0:00:02]} 16. Bb4 {[%emt 0:00:00]} Bc5 {[%emt 0:16:24]} 17. Bf3 {[%emt 0:00:00]} a5 {[%emt 0:01:02]} 18. Bxc5 {[%emt 0:00:00]} Nxc5 {[%emt 0:00:02]} 19. O-O-O {[%emt 0:00:00]} a4 {[%emt 0:01:38]} 20. Rd6 {[%emt 0:00:00]} f5 {[%emt 0:11:23]} 21. g5 {[%emt 0:00:00]} Rac8 {[%emt 0:08:29]} 22. Rhd1 {[%emt 0:00:00]} Kf7 {[%emt 0:00:18]} 23. h4 {[%emt 0:00:00]} Rc7 {[%emt 0:03:21]} 24. Rb6 {[%emt 0:00:00]} Ke7 {[%emt 0:00:47]} 25. Kb1 {[%emt 0:00:00]} Rd8 {[%emt 0:00:02]} 26. Rxd8 {[%emt 0:00:00]} Kxd8 {[%emt 0:00:02]} 27. b4 {[%emt 0:00:00]} axb3 {[%emt 0:00:02]} 28. cxb3 {[%emt 0:00:00]} e5 {[%emt 0:02:15]} 1/2-1/2

[Event "Charlotte Fall GM-A 2023"]
[Site "Charlotte"]
[Date "2023.11.21"]
[Round "8.3"]
[White "Corrales Jimenez, Fidel"]
[Black "Chen, Ryo"]
[Result "1-0"]
[ECO "B67"]
[WhiteElo "2525"]
[BlackElo "2367"]
[Annotator "RC"]
[PlyCount "79"]
[EventDate "2023.11.17"]
[EventType "tourn"]
[EventCountry "USA"]
[SourceTitle "playchess.com"]
[Source "ChessBase"]
[SourceQuality "1"]
[TimeControl "5400+30"]

1. e4 {[%emt 0:07:32]} c5 {[%emt 0:00:03]} 2. Nf3 {[%emt 0:00:09]} d6 {[%emt 0:00:09]} 3. d4 {[%emt 0:00:09]} cxd4 {[%emt 0:00:05]} 4. Nxd4 {[%emt 0:00:05]} Nf6 {[%emt 0:00:05]} 5. Nc3 {[%emt 0:00:04]} Nc6 {[%emt 0:00:09]} 6. Bg5 {[%emt 0:00:10]} e6 {[%emt 0:00:13]} 7. Qd2 {[%emt 1:25:51]} a6 {[%emt 0:00:54]} 8. O-O-O {[%emt 0:00:00]} Bd7 {[%emt 0:00:10]} 9. Nxc6 {[%emt 0:00:00]} Bxc6 {[%emt 0:00:15]} 10. Bd3 {[%emt 0:00:00]} h6 {[%emt 0:17:19]} 11. Bf4 {[%emt 0:00:00]} d5 {[%emt 0:04:02]} 12. exd5 {[%emt 0:00:00]} Nxd5 {[%emt 1:13:06]} 13. Nxd5 {[%emt 0:00:00]} Qxd5 {[%emt 0:00:00]} 14. Kb1 {[%emt 0:00:00]} Be7 {[%emt 0:00:00]} 15. f3 {[%emt 0:00:00]} Bf6 {[%emt 0:00:00]} 16. Rhe1 {[%emt 0:00:00]} O-O-O {[%emt 0:00:00]} 17. Re4 {[%emt 0:00:00]} Rd7 {[%emt 0:00:00]} 18. Qb4 {[%emt 0:00:00]} Be7 {[%emt 0:00:00]} 19. Qe1 {[%emt 0:00:00]} Rhd8 {[%emt 0:00:00]} 20. Be5 {[%emt 0:00:00]} Qc5 {[%emt 0:00:00]} 21. Rg4 {[%emt 0:00:00]} g6 {[%emt 0:01:10]} 22. a3 {[%emt 0:00:00]} h5 {[%emt 0:01:06]} 23. Rb4 {[%emt 0:00:00]} Qd5 {[%emt 0:01:26]} 24. Rd4 {[%emt 0:00:00]} Qc5 {[%emt 0:00:16]} 25. b4 {[%emt 0:00:00]} Qb6 {[%emt 0:01:10]} 26. Rc4 {[%emt 0:00:00]} Qb5 {[%emt 0:00:52]} 27. Qc3 {[%emt 0:00:00]} Bd6 {[%emt 0:00:48]} 28. Re1 {[%emt 0:00:00]} Kb8 {[%emt 0:01:12]} 29. Bf6 {[%emt 0:00:00]} Be7 {[%emt 0:00:00]} 30. Bd4 {[%emt 0:00:00]} Qg5 {[%emt 0:00:26]} 31. Be5+ {[%emt 0:00:00]} Bd6 {[%emt 0:00:17]} 32. Bf6 {[%emt 0:00:00]} Qxg2 {[%emt 0:00:31]} 33. Rxc6 {[%emt 0:00:00]} bxc6 {[%emt 0:00:17]} 34. Qxc6 {[%emt 0:00:00]} Qf2 {[%emt 0:00:32]} 35. Rd1 {[%emt 0:00:00]} Rc7 {[%emt 0:00:28]} 36. Qxa6 {[%emt 0:00:00]} Qxf3 {[%emt 0:00:51]} 37. Qb6+ {[%emt 0:00:00]} Ka8 {[%emt 0:01:08]} 38. Rf1 {[%emt 0:00:00]} Qg2 {[%emt 0:00:00]} 39. Bxd8 {[%emt 0:00:00]} Rxc2 {[%emt 0:00:00]} 40. Qa6+ {[%emt 0:00:00]} 1-0

[Event "Charlotte Fall GM-A 2023"]
[Site "Charlotte"]
[Date "2023.11.21"]
[Round "8.4"]
[White "Cruz, Cristhian"]
[Black "Aarav Dengla"]
[Result "0-1"]
[ECO "D02"]
[WhiteElo "2498"]
[BlackElo "2391"]
[Annotator "RC"]
[PlyCount "210"]
[EventDate "2023.11.17"]
[EventType "tourn"]
[EventCountry "USA"]
[SourceTitle "playchess.com"]
[Source "ChessBase"]
[SourceQuality "1"]
[TimeControl "5400+30"]

1. Nf3 {[%emt 0:04:40]} d5 {[%emt 0:00:10]} 2. d4 {[%emt 0:00:36]} e6 {[%emt 0:00:28]} 3. Bf4 {[%emt 0:01:09]} c5 {[%emt 0:02:05]} 4. e3 {[%emt 0:00:52]} Nf6 {[%emt 1:29:47]} 5. Nbd2 {[%emt 0:01:32]} Bd6 {[%emt 0:00:00]} 6. Bb5+ {[%emt 0:01:07]} Nc6 {[%emt 0:00:00]} 7. dxc5 {[%emt 0:01:49]} Bxc5 {[%emt 0:00:00]} 8. O-O {[%emt 0:05:45]} O-O {[%emt 0:00:00]} 9. c4 {[%emt 0:00:32]} Nb4 {[%emt 0:00:00]} 10. a3 {[%emt 0:12:07]} Nd3 {[%emt 0:00:00]} 11. Nb3 {[%emt 0:01:49]} Nxf4 {[%emt 0:00:00]} 12. Nxc5 {[%emt 0:00:08]} Ng6 {[%emt 0:00:00]} 13. Ba4 {[%emt 0:17:40]} Qc7 {[%emt 0:00:00]} 14. b4 {[%emt 0:02:45]} dxc4 {[%emt 0:00:00]} 15. Rc1 {[%emt 0:02:50]} a6 {[%emt 0:00:00]} 16. Qd4 {[%emt 0:03:12]} e5 {[%emt 0:00:00]} 17. Qb2 {[%emt 0:02:16]} b6 {[%emt 0:00:00]} 18. Rxc4 {[%emt 0:00:03]} e4 {[%emt 0:00:00]} 19. Rfc1 {[%emt 0:04:41]} bxc5 {[%emt 0:00:00]} 20. Rxc5 {[%emt 0:00:02]} Qe7 {[%emt 0:00:00]} 21. Rc7 {[%emt 0:00:50]} Qd8 {[%emt 0:00:00]} 22. Ne5 {[%emt 0:08:14]} Be6 {[%emt 0:00:00]} 23. h3 {[%emt 0:01:13]} Qd6 {[%emt 0:00:00]} 24. Nxg6 {[%emt 0:00:22]} hxg6 {[%emt 0:00:00]} 25. R1c6 {[%emt 0:00:08]} Qd8 {[%emt 0:00:00]} 26. Rc5 {[%emt 0:01:27]} Qd6 {[%emt 0:00:00]} 27. R5c6 {[%emt 0:00:22]} Qd8 {[%emt 0:00:00]} 28. Rc5 {[%emt 0:00:08]} Nd5 {[%emt 0:12:00]} 29. R7c6 {[%emt 0:00:54]} Ne7 {[%emt 0:00:00]} 30. Rc7 {[%emt 0:00:20]} Nd5 {[%emt 0:00:00]} 31. R7c6 {[%emt 0:00:07]} Ne7 {[%emt 0:00:00]} 32. Rc7 {[%emt 0:00:19]} Rc8 {[%emt 0:00:00]} 33. Rxc8 {[%emt 0:01:31]} Nxc8 {[%emt 0:00:00]} 34. Bc2 {[%emt 0:02:07]} Qd2 {[%emt 0:00:00]} 35. Qc3 {[%emt 0:02:10]} Qc1+ {[%emt 0:00:00]} 36. Kh2 {[%emt 0:00:01]} Nd6 {[%emt 0:04:00]} 37. a4 {[%emt 0:03:24]} Qf1 {[%emt 0:00:00]} 38. Qd4 {[%emt 0:05:13]} Nf5 {[%emt 0:01:00]} 39. Qd2 {[%emt 0:00:06]} Qa1 {[%emt 0:00:00]} 40. a5 {[%emt 0:01:50]} Qb2 {[%emt 0:00:00]} 41. Qc3 {[%emt 0:01:31]} Qa2 {[%emt 0:00:00]} 42. Rc6 {[%emt 0:00:26]} Ne7 {[%emt 0:00:00]} 43. Rc5 {[%emt 0:00:11]} Rd8 {[%emt 0:00:00]} 44. Rc7 {[%emt 0:01:07]} Nd5 {[%emt 0:03:00]} 45. Qd4 {[%emt 0:00:01]} Rb8 {[%emt 0:00:00]} 46. Rc6 {[%emt 0:02:14]} Nxb4 {[%emt 0:00:00]} 47. Rb6 {[%emt 0:00:18]} Rc8 {[%emt 0:01:30]} 48. Bxe4 {[%emt 0:00:10]} Nc2 {[%emt 0:00:00]} 49. Qe5 {[%emt 0:01:13]} Na3 {[%emt 0:00:14]} 50. Rb8 {[%emt 0:05:34]} Qc4 {[%emt 0:00:35]} 51. Rb6 {[%emt 0:00:42]} Qa2 {[%emt 0:00:02]} 52. Rb8 {[%emt 0:00:09]} Qc4 {[%emt 0:00:43]} 53. Rb6 {[%emt 0:00:10]} Re8 {[%emt 0:00:41]} 54. Bc6 {[%emt 0:00:44]} Bd7 {[%emt 0:00:32]} 55. Qd6 {[%emt 0:00:26]} Bxc6 {[%emt 0:00:21]} 56. Rxc6 {[%emt 0:00:01]} Qe6 {[%emt 0:00:40]} 57. Rxa6 {[%emt 0:00:47]} Qxd6+ {[%emt 0:00:13]} 58. Rxd6 {[%emt 0:00:01]} Re5 {[%emt 0:00:33]} 59. a6 {[%emt 0:00:54]} Ra5 {[%emt 0:00:25]} 60. Rc6 {[%emt 0:00:02]} f6 {[%emt 0:00:44]} 61. Kg3 {[%emt 0:00:44]} Nb1 {[%emt 0:00:13]} 62. e4 {[%emt 0:03:33]} Nd2 {[%emt 0:00:19]} 63. f3 {[%emt 0:00:10]} Kh7 {[%emt 0:00:31]} 64. h4 {[%emt 0:00:31]} Nb3 {[%emt 0:00:30]} 65. Kf4 {[%emt 0:00:13]} Nc5 {[%emt 0:01:44]} 66. g4 {[%emt 0:00:05]} Nxa6 {[%emt 0:00:00]} 67. g5 {[%emt 0:00:10]} fxg5+ {[%emt 0:00:21]} 68. hxg5 {[%emt 0:00:03]} Nc5 {[%emt 0:00:24]} 69. Kg4 {[%emt 0:01:18]} Nd3 {[%emt 0:00:22]} 70. f4 {[%emt 0:00:47]} Ra3 {[%emt 0:00:25]} 71. Rc2 {[%emt 0:00:19]} Ra4 {[%emt 0:00:23]} 72. Re2 {[%emt 0:00:25]} Nc5 {[%emt 0:00:10]} 73. Kf3 {[%emt 0:00:01]} Ra3+ {[%emt 0:00:27]} 74. Kg4 {[%emt 0:00:16]} Ra4 {[%emt 0:00:01]} 75. Kf3 {[%emt 0:00:01]} Ne6 {[%emt 0:02:27]} 76. Rd2 {[%emt 0:00:18]} Ra3+ {[%emt 0:00:00]} 77. Kg4 {[%emt 0:00:01]} Ra4 {[%emt 0:00:09]} 78. Kf3 {[%emt 0:00:13]} Ra3+ {[%emt 0:00:31]} 79. Kg4 {[%emt 0:00:33]} Re3 {[%emt 0:00:02]} 80. e5 {[%emt 0:01:13]} Kg8 {[%emt 0:00:39]} 81. Rd6 {[%emt 0:02:25]} Kf7 {[%emt 0:00:06]} 82. Ra6 {[%emt 0:00:05]} Rd3 {[%emt 0:00:56]} 83. Ra7+ {[%emt 0:00:05]} Kf8 {[%emt 0:00:07]} 84. Ra8+ {[%emt 0:00:40]} Ke7 {[%emt 0:02:00]} 85. Ra7+ {[%emt 0:00:25]} Rd7 {[%emt 0:00:00]} 86. Ra3 {[%emt 0:00:11]} Kf7 {[%emt 0:01:00]} 87. Ra4 {[%emt 0:00:10]} Rc7 {[%emt 0:00:00]} 88. Rb4 {[%emt 0:00:18]} Nc5 {[%emt 0:01:00]} 89. Rc4 {[%emt 0:00:40]} Ke7 {[%emt 0:00:00]} 90. Rd4 {[%emt 0:02:08]} Ra7 {[%emt 0:00:17]} 91. Rc4 {[%emt 0:00:48]} Ne6 {[%emt 0:00:25]} 92. Rb4 {[%emt 0:00:07]} Rd7 {[%emt 0:00:22]} 93. Ra4 {[%emt 0:00:08]} Kf7 {[%emt 0:01:26]} 94. Rb4 {[%emt 0:00:12]} Rd4 {[%emt 0:00:00]} 95. Rb7+ {[%emt 0:00:17]} Ke8 {[%emt 0:00:00]} 96. Rb8+ {[%emt 0:00:28]} Ke7 {[%emt 0:01:30]} 97. Rb7+ {[%emt 0:00:05]} Ke8 {[%emt 0:00:00]} 98. Rb8+ {[%emt 0:00:06]} Ke7 {[%emt 0:01:00]} 99. Rb7+ {[%emt 0:01:04]} Kd8 {[%emt 0:00:00]} 100. Rb6 {[%emt 0:01:19]} Kd7 {[%emt 0:00:00]} 101. Rb7+ {[%emt 0:00:07]} Kd8 {[%emt 0:00:00]} 102. Rb6 {[%emt 0:00:11]} Kd7 {[%emt 0:00:00]} 103. Rb7+ {[%emt 0:00:07]} Kc6 {[%emt 0:00:00]} 104. Re7 {[%emt 0:01:25]} Nxf4 {[%emt 0:03:00]} 105. Kf3 {[%emt 0:00:23]} Kd5 {[%emt 0:00:00]} 0-1